[Event "EYCC Open-U16 2019"]
[Site "Bratislava"]
[Date "2019.08.10"]
[Round "9.1"]
[White "Van Dael, Siem"]
[Black "Barseghyan, Armen Ar."]
[Result "1/2-1/2"]
[ECO "B36"]
[WhiteElo "2319"]
[BlackElo "2313"]
[Annotator "NA"]
[PlyCount "115"]
[EventDate "2019.08.02"]
[EventType "swiss"]
[EventCountry "SVK"]
[SourceTitle "playchess.com"]
[Source "ChessBase"]
[SourceQuality "1"]
[TimeControl "40/5400+30:1800+30"]

1. e4 {[%emt 0:00:00]} c5 {[%emt 0:00:34]} 2. Nf3 {[%emt 0:00:00]} Nc6 {[%emt 0:00:16]} 3. d4 {[%emt 0:00:00]} cxd4 {[%emt 0:00:04]} 4. Nxd4 {[%emt 0:00:00]} g6 {[%emt 0:00:15]} 5. c4 {[%emt 0:00:05]} Nf6 {[%emt 0:00:13]} 6. Nc3 {[%emt 0:00:51]} d6 {[%emt 0:00:20]} 7. Be2 {[%emt 0:01:28]} Nxd4 {[%emt 0:00:33]} 8. Qxd4 {[%emt 0:00:09]} Bg7 {[%emt 0:00:04]} 9. Be3 {[%emt 0:16:36]} O-O {[%emt 0:00:07]} 10. Qd2 {[%emt 0:00:05]} a5 {[%emt 0:00:12]} 11. f3 {[%emt 0:00:17]} a4 {[%emt 0:00:22]} 12. O-O {[%emt 0:01:07]} Qa5 {[%emt 0:00:51]} 13. Qc2 {[%emt 0:03:11]} Be6 {[%emt 0:10:44]} 14. Nb5 {[%emt 0:01:07]} Rfc8 {[%emt 0:04:34]} 15. Nd4 {[%emt 0:06:16]} b5 {[%emt 0:28:57]} 16. b4 {[%emt 0:06:52]} axb3 {[%emt 0:06:53]} 17. axb3 {[%emt 0:01:29]} Qxa1 {[%emt 0:01:42]} 18. Rxa1 {[%emt 0:00:05]} Rxa1+ {[%emt 0:00:04]} 19. Kf2 {[%emt 0:00:08]} Bd7 {[%emt 0:03:58]} 20. Qd2 {[%emt 0:11:32]} bxc4 {[%emt 0:10:39]} 21. Bxc4 {[%emt 0:00:17]} e6 {[%emt 0:00:25]} 22. Ne2 {[%emt 0:05:55]} d5 {[%emt 0:02:33]} 23. Bd4 {[%emt 0:03:24]} Raa8 {[%emt 0:00:59]} 24. exd5 {[%emt 0:09:55]} exd5 {[%emt 0:03:06]} 25. Bxd5 {[%emt 0:05:37]} Nxd5 {[%emt 0:02:53]} 26. Bxg7 {[%emt 0:00:06]} Kxg7 {[%emt 0:01:33]} 27. Qxd5 {[%emt 0:00:06]} Rd8 {[%emt 0:02:40]} 28. Qe5+ {[%emt 0:01:29]} Kg8 {[%emt 0:00:24]} 29. Nc3 {[%emt 0:00:25]} Bc6 {[%emt 0:05:06]} 30. b4 {[%emt 0:02:13]} Rd3 {[%emt 0:02:19]} 31. Qc5 {[%emt 0:04:37]} Bb7 {[%emt 0:06:15]} 32. Nb5 {[%emt 0:08:31]} Rad8 {[%emt 0:03:22]} 33. Qb6 {[%emt 0:00:44]} Bc8 {[%emt 0:01:10]} 34. Na7 {[%emt 0:01:37]} Be6 {[%emt 0:00:49]} 35. Nc6 {[%emt 0:00:16]} R8d7 {[%emt 0:00:46]} 36. b5 {[%emt 0:01:29]} Rb3 {[%emt 0:00:42]} 37. Kg3 {[%emt 0:06:41]} h5 {[%emt 0:01:25]} 38. h4 {[%emt 0:03:03]} Kh7 {[%emt 0:00:31]} 39. Qb8 {[%emt 0:00:46]} Bd5 {[%emt 0:00:37]} 40. Qc8 {[%emt 0:00:00]} Be6 {[%emt 0:00:00]} 41. Qb8 {[%emt 0:03:42]} Bd5 {[%emt 0:08:24]} 42. Na5 {[%emt 0:04:34]} Rb1 {[%emt 0:03:05]} 43. Qb6 {[%emt 0:01:02]} Be6 {[%emt 0:03:44]} 44. Nc6 {[%emt 0:04:57]} Bc4 {[%emt 0:02:12]} 45. Qc5 {[%emt 0:04:17]} Bxb5 {[%emt 0:02:07]} 46. Ne5 {[%emt 0:00:37]} Ba4 {[%emt 0:05:05]} 47. Qa5 {[%emt 0:10:02]} Re7 {[%emt 0:00:30]} 48. Nc4 {[%emt 0:00:21]} Bb3 {[%emt 0:01:23]} 49. Nd6 {[%emt 0:02:44]} Rd1 {[%emt 0:01:29]} 50. Nc8 {[%emt 0:00:50]} Re8 {[%emt 0:00:55]} 51. Nb6 {[%emt 0:00:44]} Rb8 {[%emt 0:00:17]} 52. Qa7 {[%emt 0:00:48]} Rxb6 {[%emt 0:00:18]} 53. Qxb6 {[%emt 0:00:05]} Be6 {[%emt 0:00:11]} 54. Kf4 {[%emt 0:00:13]} Rd5 {[%emt 0:01:36]} 55. g4 {[%emt 0:00:16]} Kg7 {[%emt 0:00:53]} 56. Qb2+ {[%emt 0:00:50]} Kh7 {[%emt 0:00:08]} 57. Qf6 {[%emt 0:00:38]} Rb5 {[%emt 0:00:59]} 58. Qe7 {[%emt 0:01:09]} 1/2-1/2

[Event "EYCC Open-U16 2019"]
[Site "Bratislava"]
[Date "2019.08.10"]
[Round "9.3"]
[White "Juksta, Karolis"]
[Black "Sahidi, Samir"]
[Result "0-1"]
[ECO "E46"]
[WhiteElo "2261"]
[BlackElo "2369"]
[Annotator "NA"]
[PlyCount "74"]
[EventDate "2019.08.02"]
[EventType "swiss"]
[EventCountry "SVK"]
[SourceTitle "playchess.com"]
[Source "ChessBase"]
[SourceQuality "1"]
[TimeControl "40/5400+30:1800+30"]

1. d4 {[%emt 0:00:00]} Nf6 {[%emt 0:00:46]} 2. c4 {[%emt 0:00:00]} e6 {[%emt 0:01:16]} 3. Nc3 {[%emt 0:00:00]} Bb4 {[%emt 0:00:40]} 4. e3 {[%emt 0:00:52]} O-O {[%emt 0:03:38]} 5. Nge2 {[%emt 0:00:22]} d5 {[%emt 0:00:53]} 6. a3 {[%emt 0:00:14]} Bxc3+ {[%emt 0:02:47]} 7. Nxc3 {[%emt 0:02:12]} b6 {[%emt 0:01:30]} 8. Bd3 {[%emt 0:16:19]} Ba6 {[%emt 0:05:46]} 9. Qe2 {[%emt 0:10:39]} Nbd7 {[%emt 0:04:13]} 10. O-O {[%emt 0:03:55]} Re8 {[%emt 0:15:34]} 11. e4 {[%emt 0:26:40]} dxe4 {[%emt 0:23:34]} 12. Nxe4 {[%emt 0:00:22]} e5 {[%emt 0:03:29]} 13. Nxf6+ {[%emt 0:21:04]} Qxf6 {[%emt 0:01:41]} 14. Qg4 {[%emt 0:02:16]} Qd6 {[%emt 0:05:31]} 15. Be3 {[%emt 0:02:44]} c5 {[%emt 0:08:26]} 16. d5 {[%emt 0:05:26]} e4 {[%emt 0:01:06]} 17. Be2 {[%emt 0:00:05]} Ne5 {[%emt 0:00:44]} 18. Bf4 {[%emt 0:01:45]} Qf6 {[%emt 0:02:14]} 19. Bxe5 {[%emt 0:02:03]} Qxe5 {[%emt 0:02:02]} 20. b4 {[%emt 0:01:39]} f5 {[%emt 0:01:02]} 21. Qg5 {[%emt 0:00:22]} Rad8 {[%emt 0:01:59]} 22. Rae1 {[%emt 0:00:50]} Rd6 {[%emt 0:03:40]} 23. Bh5 {[%emt 0:01:01]} Rf8 {[%emt 0:01:09]} 24. b5 {[%emt 0:00:20]} Bc8 {[%emt 0:00:20]} 25. g3 {[%emt 0:00:39]} Qd4 {[%emt 0:01:09]} 26. Qf4 {[%emt 0:00:33]} Rdf6 {[%emt 0:01:12]} 27. Be2 {[%emt 0:00:29]} Qb2 {[%emt 0:00:45]} 28. a4 {[%emt 0:00:32]} h6 {[%emt 0:00:44]} 29. h4 {[%emt 0:00:11]} Qa2 {[%emt 0:00:57]} 30. h5 {[%emt 0:00:52]} Qxa4 {[%emt 0:00:26]} 31. Qd2 {[%emt 0:00:31]} f4 {[%emt 0:01:00]} 32. gxf4 {[%emt 0:00:28]} Rxf4 {[%emt 0:00:34]} 33. Qe3 {[%emt 0:00:32]} Qc2 {[%emt 0:00:49]} 34. Rb1 {[%emt 0:00:30]} Bg4 {[%emt 0:00:27]} 35. Bxg4 Rxg4+ {[%emt 0:00:05]} 36. Kh2 {[%emt 0:00:34]} Qxc4 {[%emt 0:00:31]} 37. f3 {[%emt 0:00:33]} exf3 {[%emt 0:00:38]} 0-1

[Event "EYCC Open-U16 2019"]
[Site "Bratislava"]
[Date "2019.08.10"]
[Round "9.4"]
[White "Globus, Or"]
[Black "Malovanyi, Yulian"]
[Result "1-0"]
[ECO "E73"]
[WhiteElo "2352"]
[BlackElo "2204"]
[Annotator "NA"]
[PlyCount "71"]
[EventDate "2019.08.02"]
[EventType "swiss"]
[EventCountry "SVK"]
[SourceTitle "playchess.com"]
[Source "ChessBase"]
[SourceQuality "1"]
[TimeControl "40/5400+30:1800+30"]

1. d4 {[%emt 0:00:00]} Nf6 {[%emt 0:00:00]} 2. c4 {[%emt 0:00:11]} g6 {[%emt 0:00:20]} 3. Nc3 {[%emt 0:00:46]} Bg7 {[%emt 0:00:18]} 4. e4 {[%emt 0:00:39]} d6 {[%emt 0:00:22]} 5. Be2 {[%emt 0:00:43]} O-O {[%emt 0:00:42]} 6. Be3 {[%emt 0:00:14]} c5 {[%emt 0:12:38]} 7. d5 {[%emt 0:01:54]} e6 {[%emt 0:03:00]} 8. Nf3 {[%emt 0:01:27]} Re8 {[%emt 0:08:12]} 9. Nd2 {[%emt 0:06:35]} Na6 {[%emt 0:01:00]} 10. O-O {[%emt 0:04:24]} Nc7 {[%emt 0:00:31]} 11. a4 {[%emt 0:11:49]} Na6 {[%emt 0:10:11]} 12. h3 {[%emt 0:10:55]} Nb4 {[%emt 0:02:03]} 13. e5 {[%emt 0:11:47]} dxe5 {[%emt 0:04:22]} 14. Bxc5 {[%emt 0:01:44]} Na6 {[%emt 0:03:17]} 15. Ba3 {[%emt 0:01:04]} exd5 {[%emt 0:02:27]} 16. cxd5 {[%emt 0:01:04]} Bf8 {[%emt 0:24:12]} 17. Bxf8 {[%emt 0:05:53]} Kxf8 {[%emt 0:01:33]} 18. Nc4 {[%emt 0:01:40]} Nc5 {[%emt 0:05:55]} 19. f4 {[%emt 0:04:54]} e4 {[%emt 0:03:36]} 20. b4 {[%emt 0:02:50]} Na6 {[%emt 0:03:23]} 21. Qd4 {[%emt 0:04:57]} b6 {[%emt 0:01:08]} 22. Ne3 {[%emt 0:02:24]} Bb7 {[%emt 0:03:52]} 23. g4 {[%emt 0:03:35]} Nc7 {[%emt 0:01:55]} 24. Rad1 {[%emt 0:04:04]} Kg8 {[%emt 0:02:53]} 25. g5 {[%emt 0:03:38]} Nd7 {[%emt 0:00:44]} 26. Ng4 {[%emt 0:01:45]} h5 {[%emt 0:01:18]} 27. gxh6 {[%emt 0:00:43]} f6 {[%emt 0:00:14]} 28. f5 {[%emt 0:00:50]} g5 {[%emt 0:00:27]} 29. d6 {[%emt 0:00:51]} Na6 {[%emt 0:00:25]} 30. Bc4+ {[%emt 0:00:35]} Kh8 {[%emt 0:00:21]} 31. Be6 {[%emt 0:00:33]} Nab8 {[%emt 0:00:45]} 32. Nxe4 {[%emt 0:00:55]} Nc6 {[%emt 0:00:17]} 33. Qb2 {[%emt 0:01:05]} Nce5 {[%emt 0:00:59]} 34. Nexf6 {[%emt 0:00:54]} Nxf6 {[%emt 0:00:35]} 35. Qxe5 {[%emt 0:01:39]} Rf8 {[%emt 0:00:08]} 36. Rc1 {[%emt 0:00:30]} 1-0

[Event "EYCC Open-U16 2019"]
[Site "Bratislava"]
[Date "2019.08.10"]
[Round "9.6"]
[White "Ceres, Dragos"]
[Black "Teclaf, Pawel"]
[Result "1/2-1/2"]
[ECO "B90"]
[WhiteElo "2266"]
[BlackElo "2454"]
[Annotator "ChessBase"]
[PlyCount "48"]
[EventDate "2019.08.02"]
[EventType "swiss"]
[EventCountry "SVK"]
[SourceTitle "playchess.com"]
[Source "ChessBase"]
[SourceQuality "1"]
[TimeControl "40/5400+30:1800+30"]

1. e4 {[%emt 0:00:00]} c5 {[%emt 0:00:00]} 2. Nf3 {[%emt 0:00:00]} d6 {[%emt 0:00:00]} 3. d4 {[%emt 0:00:00]} cxd4 {[%emt 0:00:00]} 4. Nxd4 {[%emt 0:00:00]} Nf6 {[%emt 0:00:00]} 5. Nc3 {[%emt 0:00:00]} a6 {[%emt 0:00:00]} 6. Be3 {[%emt 0:00:00]} e6 {[%emt 0:00:15]} 7. f3 {[%emt 0:00:18]} b5 {[%emt 0:02:06]} 8. g4 {[%emt 0:00:20]} h6 {[%emt 0:02:48]} 9. Qd2 {[%emt 0:00:13]} Nbd7 {[%emt 0:02:36]} 10. O-O-O {[%emt 0:01:52]} Bb7 {[%emt 0:01:09]} 11. h4 {[%emt 0:00:10]} b4 {[%emt 0:01:48]} 12. Na4 {[%emt 0:00:21]} Qa5 {[%emt 0:00:17]} 13. b3 {[%emt 0:00:05]} Nc5 {[%emt 0:00:17]} 14. a3 {[%emt 0:00:06]} Nxa4 {[%emt 0:00:03]} 15. axb4 {[%emt 0:00:02]} Qc7 {[%emt 0:00:07]} 16. bxa4 {[%emt 0:00:04]} Nd7 {[%emt 0:00:01]} 17. Rh3 {[%emt 0:11:10]} Ne5 {[%emt 0:27:42]} 18. Nb3 {[%emt 0:13:04]} Rc8 {[%emt 0:09:21]} 19. Bd4 {[%emt 0:19:13]} Nc6 {[%emt 0:20:25]} 20. c4 {[%emt 0:15:05]} Nxd4 {[%emt 0:02:32]} 21. Qxd4 {[%emt 0:00:20]} Bc6 {[%emt 0:03:26]} 22. Kb2 {[%emt 0:09:42]} Bxa4 {[%emt 0:00:56]} 23. Ra1 {[%emt 0:00:07]} Bxb3 {[%emt 0:06:31]} 24. Kxb3 {[%emt 0:01:26]} Qb7 {[%emt 0:01:13]} 1/2-1/2

[Event "EYCC Open-U16 2019"]
[Site "Bratislava"]
[Date "2019.08.10"]
[Round "9.7"]
[White "Remizov, Yaroslav"]
[Black "Mis, Mieszko"]
[Result "1-0"]
[ECO "B85"]
[WhiteElo "2357"]
[BlackElo "2284"]
[Annotator "NA"]
[PlyCount "55"]
[EventDate "2019.08.02"]
[EventType "swiss"]
[EventCountry "SVK"]
[SourceTitle "playchess.com"]
[Source "ChessBase"]
[SourceQuality "1"]
[TimeControl "40/5400+30:1800+30"]

1. e4 {[%emt 0:00:00]} c5 {[%emt 0:00:00]} 2. Nf3 {[%emt 0:00:00]} e6 {[%emt 0:00:15]} 3. d4 {[%emt 0:00:00]} cxd4 {[%emt 0:00:07]} 4. Nxd4 {[%emt 0:00:00]} Nc6 {[%emt 0:00:21]} 5. Nc3 {[%emt 0:00:13]} Qc7 {[%emt 0:00:25]} 6. Be2 {[%emt 0:00:24]} a6 {[%emt 0:00:20]} 7. O-O {[%emt 0:00:34]} Nf6 {[%emt 0:01:03]} 8. Be3 {[%emt 0:00:31]} Be7 {[%emt 0:00:35]} 9. f4 {[%emt 0:01:18]} d6 {[%emt 0:00:29]} 10. Qe1 {[%emt 0:01:20]} O-O {[%emt 0:01:19]} 11. Kh1 {[%emt 0:01:55]} Nxd4 {[%emt 0:00:19]} 12. Bxd4 {[%emt 0:00:06]} b5 {[%emt 0:00:47]} 13. a3 {[%emt 0:03:47]} Bb7 {[%emt 0:01:06]} 14. Qg3 {[%emt 0:01:09]} Rad8 {[%emt 0:02:02]} 15. Bd3 {[%emt 0:07:59]} Rd7 {[%emt 0:03:35]} 16. Rae1 {[%emt 0:06:21]} Re8 {[%emt 0:01:35]} 17. Nd1 {[%emt 0:15:47]} Bd8 {[%emt 0:15:46]} 18. Ne3 {[%emt 0:13:53]} e5 {[%emt 0:15:44]} 19. Nf5 {[%emt 0:01:59]} Nh5 {[%emt 0:05:15]} 20. Qg4 {[%emt 0:10:48]} exd4 {[%emt 0:01:13]} 21. Qxh5 {[%emt 0:02:44]} g6 {[%emt 0:03:09]} 22. Nh6+ {[%emt 0:03:11]} Kg7 {[%emt 0:10:42]} 23. Qh3 {[%emt 0:00:36]} Rde7 {[%emt 0:01:30]} 24. f5 {[%emt 0:06:49]} Rxe4 {[%emt 0:05:14]} 25. fxg6 {[%emt 0:06:55]} Bc8 {[%emt 0:06:42]} 26. Nf5+ {[%emt 0:01:12]} Bxf5 {[%emt 0:01:23]} 27. Qxh7+ {[%emt 0:00:05]} Kf6 {[%emt 0:02:36]} 28. gxf7 {[%emt 0:01:47]} 1-0

[Event "EYCC Open-U16 2019"]
[Site "Bratislava"]
[Date "2019.08.10"]
[Round "9.10"]
[White "Geher, Koppany"]
[Black "Kacharava, Nikolozi"]
[Result "0-1"]
[ECO "C41"]
[WhiteElo "2211"]
[BlackElo "2431"]
[Annotator "RC"]
[PlyCount "92"]
[EventDate "2019.08.02"]
[EventType "swiss"]
[EventCountry "SVK"]
[SourceTitle "playchess.com"]
[Source "ChessBase"]
[SourceQuality "1"]
[TimeControl "40/5400+30:1800+30"]

1. e4 {[%emt 0:00:00]} d6 {[%emt 0:00:00]} 2. d4 {[%emt 0:00:00]} Nf6 {[%emt 0:00:28]} 3. Nc3 {[%emt 0:00:00]} e5 {[%emt 0:00:28]} 4. Nf3 {[%emt 0:00:00]} Nbd7 {[%emt 0:00:29]} 5. Rg1 {[%emt 0:00:02]} g6 {[%emt 0:01:12]} 6. g4 {[%emt 0:00:10]} Bg7 {[%emt 0:00:42]} 7. g5 {[%emt 0:00:36]} Nh5 {[%emt 0:00:26]} 8. Be3 {[%emt 0:00:16]} c6 {[%emt 0:02:24]} 9. Qd2 {[%emt 0:02:31]} Qc7 {[%emt 0:07:21]} 10. O-O-O {[%emt 0:03:33]} b5 {[%emt 0:05:06]} 11. d5 {[%emt 0:18:26]} b4 {[%emt 0:01:50]} 12. dxc6 {[%emt 0:06:46]} bxc3 {[%emt 0:00:44]} 13. cxd7+ {[%emt 0:00:07]} Bxd7 {[%emt 0:01:11]} 14. Qxd6 {[%emt 0:24:44]} cxb2+ {[%emt 0:18:45]} 15. Kb1 {[%emt 0:00:15]} Qxd6 {[%emt 0:01:55]} 16. Rxd6 {[%emt 0:00:02]} Nf4 {[%emt 0:11:22]} 17. Ba6 {[%emt 0:09:14]} Ba4 {[%emt 0:12:13]} 18. Rgd1 {[%emt 0:15:33]} O-O {[%emt 0:01:45]} 19. Bc4 {[%emt 0:00:44]} Rfc8 {[%emt 0:06:21]} 20. Bb3 {[%emt 0:00:13]} Ne2 {[%emt 0:06:07]} 21. Bd2 {[%emt 0:09:33]} Bf8 {[%emt 0:04:25]} 22. Rf6 {[%emt 0:02:26]} Bxb3 {[%emt 0:01:43]} 23. axb3 {[%emt 0:00:01]} a5 {[%emt 0:02:20]} 24. Re1 {[%emt 0:01:07]} Nc3+ {[%emt 0:02:29]} 25. Bxc3 {[%emt 0:04:24]} Rxc3 {[%emt 0:00:05]} 26. Re3 {[%emt 0:01:34]} Rc7 {[%emt 0:01:30]} 27. Kxb2 {[%emt 0:00:22]} a4 {[%emt 0:01:27]} 28. bxa4 {[%emt 0:00:10]} Rxa4 {[%emt 0:00:20]} 29. Nd2 {[%emt 0:00:41]} Be7 {[%emt 0:01:11]} 30. Rb6 {[%emt 0:00:53]} Bxg5 {[%emt 0:00:57]} 31. Rd3 {[%emt 0:00:01]} Bxd2 {[%emt 0:00:58]} 32. Rxd2 {[%emt 0:00:01]} Rxe4 {[%emt 0:00:08]} 33. f3 {[%emt 0:00:34]} Rf4 {[%emt 0:01:09]} 34. Rb3 {[%emt 0:00:09]} Kg7 {[%emt 0:00:38]} 35. Re3 {[%emt 0:00:17]} f6 {[%emt 0:00:53]} 36. c3 {[%emt 0:00:20]} g5 {[%emt 0:01:15]} 37. Rc2 {[%emt 0:00:06]} h5 {[%emt 0:00:49]} 38. Kb3 {[%emt 0:00:25]} Rb7+ {[%emt 0:01:52]} 39. Ka3 {[%emt 0:00:11]} Rc7 {[%emt 0:00:29]} 40. Kb3 {[%emt 0:00:00]} Rb7+ {[%emt 0:00:00]} 41. Ka3 {[%emt 0:00:15]} g4 {[%emt 0:08:08]} 42. fxg4 {[%emt 0:01:05]} hxg4 {[%emt 0:03:38]} 43. Rg3 {[%emt 0:00:58]} f5 {[%emt 0:01:16]} 44. h3 {[%emt 0:01:07]} Rf3 {[%emt 0:04:06]} 45. Rcg2 {[%emt 0:00:10]} Rxg3 {[%emt 0:01:34]} 46. Rxg3 {[%emt 0:00:07]} Kg6 {[%emt 0:00:59]} 0-1

[Event "EYCC Open-U16 2019"]
[Site "Bratislava"]
[Date "2019.08.10"]
[Round "9.11"]
[White "Olsen, Filip Boe"]
[Black "Alonso Garcia, Aaron"]
[Result "1-0"]
[ECO "E16"]
[WhiteElo "2383"]
[BlackElo "2248"]
[Annotator "NA"]
[PlyCount "90"]
[EventDate "2019.08.02"]
[EventType "swiss"]
[EventCountry "SVK"]
[SourceTitle "playchess.com"]
[Source "ChessBase"]
[SourceQuality "1"]
[TimeControl "40/5400+30:1800+30"]

1. d4 {[%emt 0:00:00]} Nf6 {[%emt 0:00:00]} 2. c4 {[%emt 0:00:00]} e6 {[%emt 0:00:05]} 3. Nf3 {[%emt 0:00:00]} Bb4+ {[%emt 0:01:41]} 4. Bd2 {[%emt 0:00:11]} Qe7 {[%emt 0:00:04]} 5. g3 {[%emt 0:01:01]} Nc6 {[%emt 0:00:06]} 6. Nc3 {[%emt 0:00:43]} O-O {[%emt 0:02:27]} 7. Bg2 {[%emt 0:00:16]} Bxc3 {[%emt 0:02:19]} 8. Bxc3 {[%emt 0:00:18]} Ne4 {[%emt 0:00:04]} 9. Rc1 {[%emt 0:00:29]} d6 {[%emt 0:00:22]} 10. d5 {[%emt 0:01:20]} Nxc3 {[%emt 0:07:28]} 11. Rxc3 {[%emt 0:00:03]} Nd8 {[%emt 0:03:31]} 12. O-O {[%emt 0:03:42]} e5 {[%emt 0:01:50]} 13. b4 {[%emt 0:05:57]} f5 {[%emt 0:07:00]} 14. e4 {[%emt 0:04:33]} Nf7 {[%emt 0:13:22]} 15. c5 {[%emt 0:09:10]} g6 {[%emt 0:10:17]} 16. Qe2 {[%emt 0:05:37]} Re8 {[%emt 0:11:30]} 17. Rfc1 {[%emt 0:01:40]} Bd7 {[%emt 0:00:16]} 18. Nd2 {[%emt 0:07:40]} Rec8 {[%emt 0:07:33]} 19. Nb3 {[%emt 0:02:08]} Nd8 {[%emt 0:04:11]} 20. exf5 {[%emt 0:03:19]} Bxf5 {[%emt 0:01:15]} 21. f4 {[%emt 0:02:15]} Nf7 {[%emt 0:02:14]} 22. Nd4 {[%emt 0:08:09]} Bd7 {[%emt 0:00:30]} 23. Ne6 {[%emt 0:04:12]} c6 {[%emt 0:02:34]} 24. cxd6 {[%emt 0:06:41]} Qxd6 {[%emt 0:00:34]} 25. fxe5 {[%emt 0:01:31]} Nxe5 {[%emt 0:04:29]} 26. Re3 {[%emt 0:04:31]} Nf7 {[%emt 0:01:47]} 27. Qb2 {[%emt 0:02:16]} Bxe6 {[%emt 0:02:43]} 28. dxe6 {[%emt 0:03:30]} Nh6 {[%emt 0:00:27]} 29. Bh3 {[%emt 0:03:52]} Re8 {[%emt 0:01:32]} 30. Qb3 {[%emt 0:05:34]} Qe7 {[%emt 0:03:36]} 31. Rd1 {[%emt 0:00:50]} Qf6 {[%emt 0:03:10]} 32. Rd7 {[%emt 0:02:21]} Re7 {[%emt 0:00:03]} 33. Rf3 {[%emt 0:01:31]} Qg5 {[%emt 0:00:54]} 34. Qc3 {[%emt 0:03:14]} Rae8 {[%emt 0:00:59]} 35. Rfd3 {[%emt 0:01:20]} Nf5 {[%emt 0:01:04]} 36. Bxf5 {[%emt 0:01:23]} gxf5 {[%emt 0:00:13]} 37. h4 {[%emt 0:02:13]} Qg6 {[%emt 0:02:20]} 38. Rxe7 {[%emt 0:01:57]} Rxe7 {[%emt 0:00:01]} 39. Rd8+ {[%emt 0:00:21]} Re8 {[%emt 0:00:00]} 40. h5 {[%emt 0:00:00]} Qxe6 {[%emt 0:00:00]} 41. h6 {[%emt 0:04:02]} Qxh6 {[%emt 0:06:36]} 42. Rxe8+ {[%emt 0:00:34]} Kf7 {[%emt 0:00:01]} 43. Rb8 {[%emt 0:00:54]} Qd6 {[%emt 0:01:18]} 44. Rxb7+ {[%emt 0:00:06]} Ke6 {[%emt 0:00:03]} 45. Qe3+ {[%emt 0:00:17]} Kd5 1-0

[Event "EYCC Open-U16 2019"]
[Site "Bratislava"]
[Date "2019.08.10"]
[Round "9.12"]
[White "Stoyanov, Tsvetan"]
[Black "Timoshin, Andrei"]
[Result "1/2-1/2"]
[ECO "B23"]
[WhiteElo "2387"]
[BlackElo "2154"]
[Annotator "NA"]
[PlyCount "134"]
[EventDate "2019.08.02"]
[EventType "swiss"]
[EventCountry "SVK"]
[SourceTitle "playchess.com"]
[Source "ChessBase"]
[SourceQuality "1"]
[TimeControl "40/5400+30:1800+30"]

1. e4 {[%emt 0:00:00]} c5 {[%emt 0:00:00]} 2. Nc3 {[%emt 0:00:20]} Nc6 {[%emt 0:02:12]} 3. Nge2 {[%emt 0:00:20]} Nf6 {[%emt 0:01:09]} 4. g3 {[%emt 0:00:50]} e6 {[%emt 0:09:00]} 5. Bg2 {[%emt 0:01:29]} d5 {[%emt 0:00:32]} 6. exd5 {[%emt 0:04:25]} exd5 {[%emt 0:00:02]} 7. d4 {[%emt 0:01:05]} cxd4 {[%emt 0:04:10]} 8. Nxd4 {[%emt 0:00:14]} Bc5 {[%emt 0:00:34]} 9. Qe2+ {[%emt 0:03:06]} Be7 {[%emt 0:12:45]} 10. Be3 {[%emt 0:07:59]} O-O {[%emt 0:01:19]} 11. O-O-O {[%emt 0:14:26]} a6 {[%emt 0:03:13]} 12. Nb3 {[%emt 0:06:03]} Be6 {[%emt 0:10:48]} 13. Nc5 {[%emt 0:05:20]} Bxc5 {[%emt 0:03:52]} 14. Bxc5 {[%emt 0:01:35]} Re8 {[%emt 0:00:03]} 15. Qd2 {[%emt 0:05:05]} Qa5 {[%emt 0:03:57]} 16. Bd4 {[%emt 0:02:18]} Nxd4 {[%emt 0:01:42]} 17. Qxd4 {[%emt 0:00:01]} b5 {[%emt 0:03:42]} 18. Rhe1 {[%emt 0:06:52]} Red8 {[%emt 0:15:19]} 19. a3 {[%emt 0:01:11]} Rac8 {[%emt 0:01:49]} 20. Bf1 {[%emt 0:02:07]} Rb8 {[%emt 0:03:31]} 21. Na2 {[%emt 0:05:42]} Bg4 {[%emt 0:06:59]} 22. Be2 {[%emt 0:00:01]} Re8 {[%emt 0:00:37]} 23. Nc3 {[%emt 0:07:34]} b4 {[%emt 0:00:48]} 24. axb4 {[%emt 0:04:34]} Rxb4 {[%emt 0:01:17]} 25. Qd3 {[%emt 0:02:56]} Bxe2 {[%emt 0:07:34]} 26. Rxe2 {[%emt 0:00:02]} Rxe2 {[%emt 0:01:22]} 27. Qxe2 {[%emt 0:01:38]} Qa1+ {[%emt 0:00:45]} 28. Kd2 {[%emt 0:00:01]} Qxb2 {[%emt 0:00:20]} 29. Nxd5 {[%emt 0:01:48]} Rb8 {[%emt 0:04:36]} 30. Nxf6+ {[%emt 0:01:31]} Qxf6 {[%emt 0:00:24]} 31. Ke1 {[%emt 0:00:12]} Qc6 {[%emt 0:00:20]} 32. Rd3 {[%emt 0:03:48]} Qh1+ {[%emt 0:00:39]} 33. Kd2 {[%emt 0:00:19]} Qxh2 {[%emt 0:00:24]} 34. Qe3 {[%emt 0:07:51]} Qh5 {[%emt 0:00:27]} 35. Qe7 {[%emt 0:00:48]} Qa5+ {[%emt 0:00:38]} 36. Ke2 {[%emt 0:00:19]} Qb5 {[%emt 0:00:36]} 37. Kd1 {[%emt 0:01:22]} h6 {[%emt 0:00:31]} 38. Rd8+ {[%emt 0:02:34]} Rxd8+ 39. Qxd8+ {[%emt 0:00:01]} Kh7 {[%emt 0:00:02]} 40. Qd4 {[%emt 0:00:00]} a5 {[%emt 0:00:00]} 41. Kc1 {[%emt 0:07:08]} a4 {[%emt 0:02:33]} 42. c4 {[%emt 0:02:13]} Qb4 {[%emt 0:03:25]} 43. Qd5 {[%emt 0:01:21]} Qc3+ {[%emt 0:12:28]} 44. Kb1 {[%emt 0:00:12]} Qb3+ {[%emt 0:00:18]} 45. Kc1 {[%emt 0:01:12]} Qc3+ {[%emt 0:09:36]} 46. Kb1 {[%emt 0:00:02]} Qf6 {[%emt 0:00:15]} 47. Ka2 {[%emt 0:03:34]} g6 {[%emt 0:01:50]} 48. c5 {[%emt 0:01:10]} Kg7 {[%emt 0:02:41]} 49. f4 {[%emt 0:00:25]} Qc3 {[%emt 0:01:42]} 50. c6 {[%emt 0:00:46]} Kf6 {[%emt 0:00:44]} 51. Qd6+ {[%emt 0:08:48]} Kf5 {[%emt 0:00:03]} 52. Qd7+ {[%emt 0:01:01]} Ke4 {[%emt 0:00:25]} 53. Qe7+ {[%emt 0:01:24]} Kd5 {[%emt 0:00:59]} 54. Qxf7+ {[%emt 0:02:39]} Kc5 {[%emt 0:01:18]} 55. Qf8+ {[%emt 0:02:56]} Kb5 {[%emt 0:00:39]} 56. Qb8+ {[%emt 0:00:29]} Ka6 {[%emt 0:00:34]} 57. c7 {[%emt 0:01:43]} Qc2+ {[%emt 0:00:22]} 58. Ka3 {[%emt 0:00:24]} Qc3+ {[%emt 0:00:20]} 59. Kxa4 {[%emt 0:00:10]} Qc4+ {[%emt 0:00:15]} 60. Ka3 {[%emt 0:00:01]} Qc3+ {[%emt 0:00:20]} 61. Ka2 {[%emt 0:00:22]} Qc2+ {[%emt 0:00:06]} 62. Ka1 {[%emt 0:00:16]} Qc1+ {[%emt 0:00:11]} 63. Qb1 {[%emt 0:00:08]} Qc3+ {[%emt 0:00:36]} 64. Ka2 {[%emt 0:00:52]} Qa5+ {[%emt 0:00:32]} 65. Kb2 {[%emt 0:01:00]} Qb6+ {[%emt 0:00:53]} 66. Ka1 {[%emt 0:00:07]} Qxb1+ {[%emt 0:00:15]} 67. Kxb1 {[%emt 0:00:01]} Kb7 {[%emt 0:00:03]} 1/2-1/2